[Event "European School-ch G13 2024"]
[Site "Limerick"]
[Date "2024.06.02"]
[Round "3.1"]
[White "Sahin, Cagla Yudum"]
[Black "Dogan, Ipek"]
[Result "1/2-1/2"]
[ECO "B23"]
[WhiteElo "1720"]
[BlackElo "1551"]
[Annotator "NA COMBH"]
[PlyCount "119"]
[EventDate "2024.05.31"]
[EventType "swiss"]
[EventCountry "IRL"]
[SourceTitle "playchess.com"]
[Source "ChessBase"]
[SourceQuality "1"]
[TimeControl "5400+30"]

1. e4 {[%emt 0:00:02]} c5 {[%emt 0:00:03]} 2. Nc3 {[%emt 0:00:03]} d6 {[%emt 0:00:05]} 3. f4 {[%emt 0:00:10]} g6 {[%emt 0:00:26]} 4. Nf3 {[%emt 0:00:07]} Bg7 {[%emt 0:00:13]} 5. Bb5+ {[%emt 0:00:07]} Bd7 {[%emt 0:00:15]} 6. Bc4 {[%emt 0:00:07]} Nc6 {[%emt 0:00:36]} 7. d3 {[%emt 0:00:11]} e6 {[%emt 0:00:28]} 8. f5 {[%emt 0:00:18]} d5 {[%emt 0:05:13]} 9. exd5 {[%emt 0:02:10]} exd5 {[%emt 0:00:23]} 10. Nxd5 {[%emt 0:02:02]} Bxf5 {[%emt 0:01:12]} 11. Qe2+ {[%emt 0:13:06]} Nge7 {[%emt 0:01:52]} 12. Bg5 {[%emt 0:01:53]} h6 {[%emt 0:01:05]} 13. Bf6 {[%emt 0:04:08]} Kf8 {[%emt 0:03:44]} 14. O-O-O {[%emt 0:24:20]} Bxf6 {[%emt 0:02:03]} 15. Nxf6 {[%emt 0:01:04]} Kg7 {[%emt 0:01:03]} 16. Ne4 {[%emt 0:01:50]} Qb6 {[%emt 0:14:01]} 17. Nd6 {[%emt 0:07:37]} Rhf8 {[%emt 0:00:56]} 18. Nh4 {[%emt 0:01:59]} Qc7 {[%emt 0:02:31]} 19. Ndxf5+ {[%emt 0:01:31]} Nxf5 {[%emt 0:00:20]} 20. Nxf5+ {[%emt 0:00:06]} gxf5 {[%emt 0:00:30]} 21. Qf2 {[%emt 0:01:53]} Ne7 {[%emt 0:03:57]} 22. Rde1 {[%emt 0:00:55]} a6 {[%emt 0:01:26]} 23. Bb3 {[%emt 0:02:01]} Rfe8 {[%emt 0:01:24]} 24. Re3 {[%emt 0:01:23]} Ng6 {[%emt 0:12:30]} 25. Rxe8 {[%emt 0:03:09]} Rxe8 {[%emt 0:00:04]} 26. Qxf5 {[%emt 0:01:11]} Re5 {[%emt 0:04:35]} 27. Qf2 {[%emt 0:01:17]} Qe7 {[%emt 0:02:17]} 28. Rf1 {[%emt 0:01:21]} f6 {[%emt 0:00:38]} 29. Kd2 {[%emt 0:02:24]} b5 {[%emt 0:00:46]} 30. c3 {[%emt 0:27:05]} a5 {[%emt 0:04:54]} 31. Re1 {[%emt 0:00:00]} Rxe1 {[%emt 0:00:19]} 32. Qxe1 {[%emt 0:00:00]} Qd6 {[%emt 0:00:15]} 33. Qe4 {[%emt 0:00:00]} c4 {[%emt 0:06:56]} 34. Bc2 {[%emt 0:00:00]} Kf7 {[%emt 0:06:58]} 35. d4 {[%emt 0:00:00]} Nf8 {[%emt 0:02:35]} 36. g3 {[%emt 0:00:00]} Qd7 {[%emt 0:02:09]} 37. Qf5 {[%emt 0:00:00]} b4 {[%emt 0:06:32]} 38. Qxd7+ {[%emt 0:00:00]} Nxd7 {[%emt 0:00:07]} 39. Bf5 {[%emt 0:00:00]} Nb6 {[%emt 0:00:31]} 40. Be4 {[%emt 0:00:00]} Ke6 {[%emt 0:00:22]} 41. cxb4 {[%emt 0:00:00]} axb4 {[%emt 0:00:13]} 42. a3 {[%emt 0:00:00]} c3+ {[%emt 0:05:02]} 43. Kc2 {[%emt 0:00:00]} cxb2 {[%emt 0:02:49]} 44. axb4 {[%emt 0:00:00]} Nc4 {[%emt 0:00:16]} 45. Bd3 {[%emt 0:00:47]} Kd5 {[%emt 0:01:33]} 46. b5 {[%emt 0:01:53]} Nd6 {[%emt 0:01:15]} 47. Kxb2 {[%emt 0:00:29]} Kxd4 {[%emt 0:00:19]} 48. Kc2 {[%emt 0:01:16]} Ke3 {[%emt 0:05:29]} 49. b6 {[%emt 0:01:12]} Kf2 {[%emt 0:00:30]} 50. Be4 {[%emt 0:01:26]} Kg1 {[%emt 0:00:25]} 51. b7 {[%emt 0:01:02]} Nxb7 {[%emt 0:00:04]} 52. Bxb7 {[%emt 0:00:05]} Kxh2 {[%emt 0:00:06]} 53. g4 {[%emt 0:00:17]} Kg3 {[%emt 0:00:21]} 54. Kd3 {[%emt 0:00:25]} Kxg4 {[%emt 0:00:09]} 55. Ke3 {[%emt 0:00:14]} Kg3 {[%emt 0:00:19]} 56. Bf3 {[%emt 0:00:20]} f5 {[%emt 0:00:10]} 57. Bh5 {[%emt 0:00:42]} Kh4 {[%emt 0:01:03]} 58. Bf3 {[%emt 0:00:21]} Kg5 {[%emt 0:00:07]} 59. Bg2 {[%emt 0:00:30]} h5 {[%emt 0:00:07]} 60. Kf3 {[%emt 0:00:22]} 1/2-1/2

[Event "European School-ch G13 2024"]
[Site "Limerick"]
[Date "2024.06.02"]
[Round "3.2"]
[White "Yazici, Zumral"]
[Black "Zeybek, Kayla Nil"]
[Result "1-0"]
[ECO "C01"]
[WhiteElo "1650"]
[BlackElo "1638"]
[Annotator "NA RC"]
[PlyCount "123"]
[EventDate "2024.05.31"]
[EventType "swiss"]
[EventCountry "IRL"]
[SourceTitle "playchess.com"]
[Source "ChessBase"]
[SourceQuality "1"]
[TimeControl "5400+30"]

1. e4 {[%emt 0:00:02]} e6 {[%emt 0:00:02]} 2. d4 {[%emt 0:00:03]} d5 {[%emt 0:00:01]} 3. exd5 {[%emt 0:00:03]} exd5 {[%emt 0:00:03]} 4. Bd3 {[%emt 0:00:04]} Nc6 {[%emt 0:00:04]} 5. c3 {[%emt 0:00:27]} Bd6 {[%emt 0:00:12]} 6. Nf3 {[%emt 0:00:28]} Bg4 {[%emt 0:00:14]} 7. Be3 {[%emt 0:00:11]} Nge7 {[%emt 0:00:20]} 8. Nbd2 {[%emt 0:01:09]} Qd7 {[%emt 0:03:09]} 9. Qc2 {[%emt 0:00:58]} Bf5 {[%emt 0:00:45]} 10. O-O {[%emt 0:01:21]} f6 {[%emt 1:30:40]} 11. Rfe1 {[%emt 0:02:07]} O-O {[%emt 0:00:00]} 12. b3 {[%emt 0:06:08]} Rad8 {[%emt 0:00:00]} 13. Rad1 {[%emt 0:06:52]} Rfe8 {[%emt 0:00:00]} 14. Bxf5 {[%emt 0:07:12]} Qxf5 {[%emt 0:00:00]} 15. Qxf5 {[%emt 0:03:47]} Nxf5 {[%emt 0:00:00]} 16. g4 {[%emt 0:05:32]} Nxe3 {[%emt 0:00:00]} 17. fxe3 {[%emt 0:00:15]} Ne7 {[%emt 0:00:00]} 18. c4 {[%emt 0:01:15]} c6 {[%emt 0:00:00]} 19. e4 {[%emt 0:04:05]} Bb4 {[%emt 0:00:00]} 20. Re3 {[%emt 0:20:14]} Nc8 {[%emt 0:00:00]} 21. Kf2 {[%emt 0:16:23]} dxc4 {[%emt 0:00:00]} 22. bxc4 {[%emt 0:06:01]} Bxd2 {[%emt 0:00:00]} 23. Rxd2 {[%emt 0:00:22]} Nd6 {[%emt 0:00:00]} 24. Rde2 {[%emt 0:02:37]} Nxc4 {[%emt 0:00:00]} 25. Rb3 {[%emt 0:00:21]} Nd6 {[%emt 0:00:00]} 26. e5 {[%emt 0:02:13]} Nb5 {[%emt 0:00:00]} 27. Re4 {[%emt 0:00:21]} fxe5 {[%emt 0:00:00]} 28. dxe5 {[%emt 0:00:45]} Re7 {[%emt 0:00:00]} 29. a4 {[%emt 0:00:55]} Nd6 {[%emt 0:00:00]} 30. Reb4 {[%emt 0:01:40]} Nf7 {[%emt 0:00:00]} 31. Rxb7 {[%emt 0:00:06]} Kf8 {[%emt 0:00:00]} 32. Kg3 {[%emt 0:04:27]} Rde8 {[%emt 0:01:34]} 33. Kf4 {[%emt 0:03:38]} Nd8 {[%emt 0:00:06]} 34. Rxe7 {[%emt 0:01:33]} Kxe7 {[%emt 0:00:18]} 35. Nd4 {[%emt 0:00:49]} Ne6+ {[%emt 0:01:17]} 36. Nxe6 {[%emt 0:00:11]} Kxe6 {[%emt 0:09:45]} 37. Rb7 {[%emt 0:00:12]} Re7 {[%emt 0:00:00]} 38. Rxe7+ {[%emt 0:00:17]} Kxe7 {[%emt 0:00:00]} 39. Ke4 {[%emt 0:00:07]} Ke6 {[%emt 0:00:00]} 40. Kd4 {[%emt 0:01:04]} g5 {[%emt 0:00:00]} 41. a5 {[%emt 0:00:17]} c5+ {[%emt 0:00:00]} 42. Kxc5 {[%emt 0:00:10]} Kxe5 {[%emt 0:00:00]} 43. a6 {[%emt 0:00:45]} Kf4 {[%emt 0:00:00]} 44. Kc6 {[%emt 0:00:43]} Kxg4 {[%emt 0:00:00]} 45. Kb7 {[%emt 0:00:02]} Kh3 {[%emt 0:00:00]} 46. Kxa7 {[%emt 0:00:02]} Kxh2 {[%emt 0:00:00]} 47. Kb6 {[%emt 0:01:02]} g4 {[%emt 0:00:00]} 48. a7 {[%emt 0:00:05]} g3 {[%emt 0:00:00]} 49. a8=Q {[%emt 0:05:39]} g2 {[%emt 0:00:00]} 50. Qb8+ {[%emt 0:00:00]} Kh1 {[%emt 0:00:00]} 51. Qb7 {[%emt 0:00:00]} h5 {[%emt 0:00:00]} 52. Qf3 {[%emt 0:00:00]} Kh2 {[%emt 0:01:37]} 53. Qxh5+ {[%emt 0:00:00]} Kg3 {[%emt 0:00:02]} 54. Qg5+ {[%emt 0:00:00]} Kh2 {[%emt 0:00:11]} 55. Qh4+ {[%emt 0:00:00]} Kg1 {[%emt 0:00:03]} 56. Kc5 {[%emt 0:00:00]} Kf1 {[%emt 0:00:03]} 57. Qf4+ {[%emt 0:00:05]} Ke2 {[%emt 0:00:06]} 58. Qg3 {[%emt 0:00:07]} Kf1 {[%emt 0:00:05]} 59. Qf3+ {[%emt 0:00:08]} Kg1 {[%emt 0:00:04]} 60. Kd4 {[%emt 0:00:21]} Kh2 {[%emt 0:00:29]} 61. Qf2 {[%emt 0:00:19]} Kh3 {[%emt 0:00:29]} 62. Qg1 {[%emt 0:00:06]} 1-0

[Event "European School-ch G13 2024"]
[Site "Limerick"]
[Date "2024.06.02"]
[Round "3.4"]
[White "Babijczuk, Nina"]
[Black "Doolin, Bedhbh"]
[Result "0-1"]
[ECO "D00"]
[WhiteElo "1514"]
[BlackElo "1644"]
[Annotator "NA RC"]
[PlyCount "64"]
[EventDate "2024.05.31"]
[EventType "swiss"]
[EventCountry "IRL"]
[SourceTitle "playchess.com"]
[Source "ChessBase"]
[SourceQuality "1"]
[TimeControl "5400+30"]

1. d4 {[%emt 0:00:02]} d5 {[%emt 0:00:04]} 2. Nc3 {[%emt 0:00:14]} Nf6 {[%emt 0:00:12]} 3. Nf3 {[%emt 0:00:24]} e6 {[%emt 0:00:52]} 4. Bf4 {[%emt 0:00:17]} Bd6 {[%emt 0:00:49]} 5. e3 {[%emt 0:00:27]} O-O {[%emt 0:02:45]} 6. Bd3 {[%emt 0:00:13]} Nbd7 {[%emt 0:12:04]} 7. e4 {[%emt 0:00:59]} Bxf4 {[%emt 0:01:25]} 8. g3 {[%emt 0:03:52]} dxe4 {[%emt 0:05:21]} 9. Nxe4 {[%emt 0:01:15]} Bd6 {[%emt 0:04:23]} 10. Nxd6 {[%emt 0:03:42]} cxd6 {[%emt 0:00:23]} 11. O-O {[%emt 0:00:22]} e5 {[%emt 0:00:22]} 12. c3 {[%emt 0:01:16]} e4 {[%emt 0:00:28]} 13. Bc4 {[%emt 0:01:55]} exf3 {[%emt 0:02:01]} 14. Qxf3 {[%emt 0:00:44]} Nb6 {[%emt 0:00:14]} 15. Bd3 {[%emt 0:00:59]} Be6 {[%emt 0:00:59]} 16. Rfe1 {[%emt 0:01:56]} Bd5 {[%emt 0:00:29]} 17. Qf4 {[%emt 0:01:14]} Qd7 {[%emt 0:03:29]} 18. Qh4 {[%emt 0:00:58]} Rfe8 {[%emt 0:00:27]} 19. h3 {[%emt 0:01:15]} Re7 {[%emt 0:03:06]} 20. g4 {[%emt 0:00:22]} Rae8 {[%emt 0:01:05]} 21. Kf1 {[%emt 0:01:00]} Bg2+ {[%emt 0:05:51]} 22. Kxg2 {[%emt 0:01:07]} Rxe1 {[%emt 0:00:15]} 23. Rxe1 {[%emt 0:00:07]} Rxe1 {[%emt 0:00:05]} 24. g5 {[%emt 0:00:16]} Qc6+ {[%emt 0:01:30]} 25. Kg3 {[%emt 0:01:10]} Rg1+ {[%emt 0:00:42]} 26. Kf4 {[%emt 0:00:49]} Nbd5+ {[%emt 0:00:20]} 27. Kf3 {[%emt 0:01:54]} Nxc3+ {[%emt 0:00:57]} 28. Kf4 {[%emt 0:00:38]} Nfd5+ {[%emt 0:01:01]} 29. Kf3 {[%emt 0:00:57]} Nb4+ {[%emt 0:00:57]} 30. Qe4 {[%emt 0:01:04]} Nxe4 {[%emt 0:00:00]} 31. Bxe4 {[%emt 0:00:16]} d5 {[%emt 0:00:00]} 32. Bf5 {[%emt 0:00:39]} Rxg5 {[%emt 0:00:00]} 0-1

[Event "European School-ch G13 2024"]
[Site "Limerick"]
[Date "2024.06.02"]
[Round "3.6"]
[White "Tumer, Eylul"]
[Black "Doolin, Nemhain"]
[Result "1/2-1/2"]
[ECO "C01"]
[WhiteElo "1539"]
[BlackElo "1726"]
[Annotator "NA RC"]
[PlyCount "87"]
[EventDate "2024.05.31"]
[EventType "swiss"]
[EventCountry "IRL"]
[SourceTitle "playchess.com"]
[Source "ChessBase"]
[SourceQuality "1"]
[TimeControl "5400+30"]

1. e4 {[%emt 0:00:01]} e6 {[%emt 0:00:01]} 2. d4 {[%emt 0:00:08]} d5 {[%emt 0:00:01]} 3. Bd3 {[%emt 0:00:10]} Bd7 {[%emt 0:01:36]} 4. Bf4 {[%emt 0:12:23]} Nc6 {[%emt 0:07:32]} 5. c3 {[%emt 0:01:48]} dxe4 {[%emt 0:03:49]} 6. Bxe4 {[%emt 0:00:28]} Nf6 {[%emt 0:00:20]} 7. Bf3 {[%emt 0:00:37]} Be7 {[%emt 0:04:11]} 8. Ne2 {[%emt 0:04:09]} O-O {[%emt 0:02:01]} 9. O-O {[%emt 0:02:04]} Nd5 {[%emt 0:02:28]} 10. Bg3 {[%emt 0:03:46]} Bh4 {[%emt 0:03:16]} 11. Qd3 {[%emt 0:03:19]} Bxg3 {[%emt 0:03:14]} 12. fxg3 {[%emt 0:02:54]} Qe7 {[%emt 0:03:32]} 13. Nd2 {[%emt 0:05:27]} Nf6 {[%emt 0:05:40]} 14. Rae1 {[%emt 0:09:00]} Rad8 {[%emt 0:08:22]} 15. Nf4 {[%emt 0:02:44]} b6 {[%emt 0:13:30]} 16. Qc2 {[%emt 0:03:05]} a5 {[%emt 0:01:23]} 17. d5 {[%emt 0:08:06]} Qc5+ {[%emt 0:02:19]} 18. Kh1 {[%emt 0:00:59]} exd5 {[%emt 0:04:11]} 19. Nb3 {[%emt 0:00:58]} Qd6 {[%emt 0:01:32]} 20. Rd1 {[%emt 0:03:24]} Be6 {[%emt 0:10:28]} 21. c4 {[%emt 0:01:28]} Nb4 {[%emt 0:06:42]} 22. Qb1 {[%emt 0:00:40]} c6 {[%emt 0:02:07]} 23. a3 {[%emt 0:00:39]} Na6 {[%emt 0:00:36]} 24. cxd5 {[%emt 0:03:34]} cxd5 {[%emt 0:03:33]} 25. Qd3 {[%emt 0:03:27]} Nc5 {[%emt 0:01:13]} 26. Qe3 {[%emt 0:03:03]} Nxb3 {[%emt 0:00:31]} 27. Qxb3 {[%emt 0:01:13]} d4 {[%emt 0:00:03]} 28. Qd3 {[%emt 0:07:49]} Rd7 {[%emt 0:04:42]} 29. Rfe1 {[%emt 0:01:25]} Bg4 {[%emt 0:00:36]} 30. Ne2 {[%emt 0:01:10]} Rfd8 {[%emt 0:00:29]} 31. Kg1 {[%emt 0:02:42]} Bxf3 {[%emt 0:01:08]} 32. gxf3 {[%emt 0:00:33]} Qd5 {[%emt 0:00:30]} 33. Rd2 {[%emt 0:00:39]} Ne8 {[%emt 0:01:40]} 34. Nxd4 {[%emt 0:01:11]} Nc7 {[%emt 0:01:05]} 35. Qe3 {[%emt 0:10:45]} h6 {[%emt 0:01:16]} 36. Nb3 {[%emt 0:00:24]} Qf5 {[%emt 0:00:17]} 37. Rxd7 {[%emt 0:00:32]} Rxd7 {[%emt 0:00:17]} 38. Qe4 {[%emt 0:01:20]} Qxe4 {[%emt 0:00:39]} 39. Rxe4 {[%emt 0:00:01]} Rd3 {[%emt 0:00:17]} 40. Nd4 {[%emt 0:00:07]} Rd2 {[%emt 0:00:30]} 41. b3 {[%emt 0:00:28]} Kf8 {[%emt 0:00:20]} 42. b4 {[%emt 0:01:23]} axb4 {[%emt 0:00:16]} 43. axb4 {[%emt 0:00:01]} Nd5 {[%emt 0:00:07]} 44. Nc6 {[%emt 0:00:19]} 1/2-1/2

[Event "European School-ch G13 2024"]
[Site "Limerick"]
[Date "2024.06.03"]
[Round "4.1"]
[White "Dogan, Ipek"]
[Black "Yazici, Zumral"]
[Result "0-1"]
[ECO "D31"]
[WhiteElo "1551"]
[BlackElo "1650"]
[Annotator "NA RC"]
[PlyCount "66"]
[EventDate "2024.05.31"]
[EventType "swiss"]
[EventCountry "IRL"]
[SourceTitle "playchess.com"]
[Source "ChessBase"]
[SourceQuality "1"]
[TimeControl "5400+30"]

1. d4 {[%emt 0:00:29]} d5 {[%emt 0:00:01]} 2. c4 {[%emt 0:00:05]} e6 {[%emt 0:00:02]} 3. Nf3 {[%emt 0:00:04]} a6 {[%emt 0:00:02]} 4. cxd5 {[%emt 0:00:07]} exd5 {[%emt 0:00:02]} 5. Nc3 {[%emt 0:00:13]} c6 {[%emt 0:00:02]} 6. Qc2 {[%emt 0:00:08]} Nf6 {[%emt 0:00:19]} 7. Bg5 {[%emt 0:00:09]} h6 {[%emt 0:01:13]} 8. Bxf6 {[%emt 0:00:22]} gxf6 {[%emt 0:01:50]} 9. e3 {[%emt 0:00:25]} Be6 {[%emt 0:04:14]} 10. Bd3 {[%emt 0:01:02]} Bd6 {[%emt 0:01:48]} 11. O-O {[%emt 0:04:14]} Rg8 {[%emt 0:08:35]} 12. Kh1 {[%emt 0:02:42]} Qc7 {[%emt 0:07:27]} 13. e4 {[%emt 0:05:45]} dxe4 {[%emt 0:06:24]} 14. Nxe4 {[%emt 0:00:44]} Nd7 {[%emt 0:00:31]} 15. Nfd2 {[%emt 0:20:48]} O-O-O {[%emt 0:07:06]} 16. Rac1 {[%emt 0:04:18]} Bd5 {[%emt 0:04:48]} 17. Nxd6+ {[%emt 0:03:23]} Qxd6 {[%emt 0:00:15]} 18. Be4 {[%emt 0:03:31]} f5 {[%emt 0:13:13]} 19. Bf3 {[%emt 0:03:25]} Bxf3 {[%emt 0:06:03]} 20. Nxf3 {[%emt 0:00:45]} Qd5 {[%emt 0:00:54]} 21. b3 {[%emt 0:05:47]} Rxg2 {[%emt 0:02:06]} 22. Qe2 {[%emt 0:03:18]} Rg4 {[%emt 0:05:22]} 23. Rg1 {[%emt 0:03:12]} Rf4 {[%emt 0:08:58]} 24. Rg3 {[%emt 0:01:11]} Rxd4 {[%emt 0:00:53]} 25. Kg1 {[%emt 0:00:32]} Re4 {[%emt 0:01:51]} 26. Qc2 {[%emt 0:00:43]} Ne5 {[%emt 0:02:08]} 27. Qc5 {[%emt 0:02:21]} Nxf3+ {[%emt 0:11:06]} 28. Rxf3 {[%emt 0:00:08]} Re1+ {[%emt 0:01:20]} 29. Rxe1 {[%emt 0:02:00]} Qxc5 {[%emt 0:00:02]} 30. Ree3 {[%emt 0:00:36]} f4 {[%emt 0:00:41]} 31. Rc3 {[%emt 0:00:13]} Rd1+ {[%emt 0:00:16]} 32. Kg2 {[%emt 0:00:04]} Qg5+ {[%emt 0:00:08]} 33. Kh3 {[%emt 0:00:05]} Qh5+ {[%emt 0:00:07]} 0-1

[Event "European School-ch G13 2024"]
[Site "Limerick"]
[Date "2024.06.03"]
[Round "4.2"]
[White "Aydogan, Arya"]
[Black "Sahin, Cagla Yudum"]
[Result "0-1"]
[ECO "C44"]
[WhiteElo "1755"]
[BlackElo "1720"]
[Annotator "NA RC"]
[PlyCount "52"]
[EventDate "2024.05.31"]
[EventType "swiss"]
[EventCountry "IRL"]
[SourceTitle "playchess.com"]
[Source "ChessBase"]
[SourceQuality "1"]
[TimeControl "5400+30"]

1. e4 {[%emt 0:00:04]} e5 {[%emt 0:00:01]} 2. Nf3 {[%emt 0:00:12]} Nc6 {[%emt 0:00:03]} 3. c3 {[%emt 0:00:13]} d5 {[%emt 0:00:13]} 4. Qa4 {[%emt 0:03:44]} Bd7 {[%emt 0:00:14]} 5. exd5 {[%emt 0:03:24]} Nd4 {[%emt 0:00:12]} 6. Qd1 {[%emt 0:03:33]} Nxf3+ {[%emt 0:00:07]} 7. Qxf3 {[%emt 0:00:30]} Nf6 {[%emt 0:00:11]} 8. Bc4 {[%emt 0:06:29]} e4 {[%emt 0:02:22]} 9. Qe3 {[%emt 0:05:36]} Bd6 {[%emt 0:00:37]} 10. h3 {[%emt 0:04:59]} O-O {[%emt 0:01:13]} 11. O-O {[%emt 0:02:49]} Re8 {[%emt 0:06:13]} 12. d4 {[%emt 0:03:14]} b5 {[%emt 0:20:39]} 13. Bb3 {[%emt 0:02:00]} a5 {[%emt 0:01:49]} 14. a3 {[%emt 0:04:21]} a4 {[%emt 0:03:24]} 15. Ba2 {[%emt 0:00:24]} Bf5 {[%emt 0:03:38]} 16. Nd2 {[%emt 0:06:17]} Nh5 {[%emt 0:08:25]} 17. Kh1 {[%emt 0:06:47]} Bf4 {[%emt 0:02:46]} 18. Qe2 {[%emt 0:00:56]} Qh4 {[%emt 0:01:27]} 19. Kg1 {[%emt 0:05:22]} Bxh3 {[%emt 0:04:27]} 20. gxh3 {[%emt 0:01:58]} Ra6 {[%emt 0:04:12]} 21. Rd1 {[%emt 0:02:38]} Qxh3 {[%emt 0:00:58]} 22. Nf1 {[%emt 0:01:23]} Rg6+ {[%emt 0:02:21]} 23. Ng3 {[%emt 0:00:37]} Nxg3 {[%emt 0:01:27]} 24. fxg3 {[%emt 0:00:25]} Qxg3+ {[%emt 0:00:45]} 25. Kh1 {[%emt 0:00:16]} Qh4+ {[%emt 0:00:07]} 26. Qh2 {[%emt 0:00:06]} Qxh2# {[%emt 0:00:04]} 0-1

[Event "European School-ch G13 2024"]
[Site "Limerick"]
[Date "2024.06.03"]
[Round "4.3"]
[White "Doolin, Bedhbh"]
[Black "Zeybek, Kayla Nil"]
[Result "0-1"]
[ECO "C56"]
[WhiteElo "1644"]
[BlackElo "1638"]
[Annotator "NA RC"]
[PlyCount "78"]
[EventDate "2024.05.31"]
[EventType "swiss"]
[EventCountry "IRL"]
[SourceTitle "playchess.com"]
[Source "ChessBase"]
[SourceQuality "1"]
[TimeControl "5400+30"]

1. e4 {[%emt 0:00:06]} e5 {[%emt 0:00:02]} 2. Nf3 {[%emt 0:00:04]} Nc6 {[%emt 0:00:02]} 3. Bc4 {[%emt 0:00:06]} Nf6 {[%emt 0:00:02]} 4. d4 {[%emt 0:00:14]} exd4 {[%emt 0:00:03]} 5. e5 {[%emt 0:00:04]} d5 {[%emt 0:00:02]} 6. Bb5 {[%emt 0:00:15]} Ne4 {[%emt 0:00:03]} 7. Nxd4 {[%emt 0:00:22]} Bc5 {[%emt 0:00:07]} 8. Be3 {[%emt 0:00:08]} O-O {[%emt 0:00:35]} 9. Bxc6 {[%emt 0:08:35]} bxc6 {[%emt 0:00:05]} 10. f3 {[%emt 0:05:05]} Qh4+ {[%emt 0:02:26]} 11. Kf1 {[%emt 0:11:23]} Ng3+ {[%emt 0:01:42]} 12. Kg1 {[%emt 0:06:56]} Nxh1 {[%emt 0:00:32]} 13. Kxh1 {[%emt 0:00:24]} Re8 {[%emt 0:03:48]} 14. f4 {[%emt 0:04:52]} Bb6 {[%emt 0:07:08]} 15. Nf3 {[%emt 0:03:48]} Qe7 {[%emt 0:03:10]} 16. Bg1 {[%emt 0:08:53]} Qb4 {[%emt 0:07:42]} 17. Qc1 {[%emt 0:03:52]} Bxg1 {[%emt 0:04:09]} 18. Kxg1 {[%emt 0:00:38]} Rb8 {[%emt 0:03:15]} 19. b3 {[%emt 0:44:15]} Bf5 {[%emt 1:05:07]} 20. c3 {[%emt 0:00:00]} Qb6+ {[%emt 0:00:00]} 21. Kh1 {[%emt 0:00:00]} c5 {[%emt 0:00:00]} 22. Qd1 {[%emt 0:00:00]} d4 {[%emt 0:00:00]} 23. Nh4 {[%emt 0:00:00]} Bxb1 {[%emt 0:00:00]} 24. Rxb1 {[%emt 0:00:00]} Red8 {[%emt 0:00:00]} 25. c4 {[%emt 0:00:00]} Qe6 {[%emt 0:00:00]} 26. Qd3 {[%emt 0:00:00]} Rd7 {[%emt 0:00:00]} 27. Re1 {[%emt 0:00:00]} Re8 {[%emt 0:00:00]} 28. Nf3 {[%emt 0:00:00]} Rde7 {[%emt 0:00:00]} 29. b4 {[%emt 0:00:00]} Qg4 {[%emt 0:00:00]} 30. Qe4 {[%emt 0:00:00]} cxb4 {[%emt 0:00:00]} 31. Nxd4 {[%emt 0:00:00]} c5 {[%emt 0:00:00]} 32. h3 {[%emt 0:00:00]} Qg6 {[%emt 0:00:55]} 33. f5 {[%emt 0:00:53]} Qa6 {[%emt 0:02:04]} 34. f6 {[%emt 0:00:43]} Qxf6 {[%emt 0:03:37]} 35. Nc6 {[%emt 0:02:01]} Re6 {[%emt 0:00:12]} 36. Qd5 {[%emt 0:00:53]} Rd6 {[%emt 0:01:02]} 37. exd6 {[%emt 0:03:51]} Rxe1+ {[%emt 0:00:21]} 38. Kh2 {[%emt 0:00:07]} Qf4+ {[%emt 0:00:10]} 39. g3 {[%emt 0:00:08]} Re2+ {[%emt 0:00:10]} 0-1

[Event "European School-ch G13 2024"]
[Site "Limerick"]
[Date "2024.06.03"]
[Round "4.4"]
[White "Isopescu, Iulia Elena"]
[Black "B. Berglindardottir, Emilia Embla"]
[Result "1-0"]
[ECO "A43"]
[WhiteElo "1701"]
[BlackElo "1544"]
[Annotator "NA RC"]
[PlyCount "85"]
[EventDate "2024.05.31"]
[EventType "swiss"]
[EventCountry "IRL"]
[SourceTitle "playchess.com"]
[Source "ChessBase"]
[SourceQuality "1"]
[TimeControl "5400+30"]

1. e4 {[%emt 0:00:03]} d6 {[%emt 0:00:06]} 2. d4 {[%emt 0:00:09]} Nf6 {[%emt 0:00:09]} 3. Nc3 {[%emt 0:00:07]} g6 {[%emt 0:00:09]} 4. Nf3 {[%emt 0:00:20]} Bg7 {[%emt 0:00:20]} 5. Be2 {[%emt 0:00:22]} O-O {[%emt 0:00:22]} 6. O-O {[%emt 0:00:07]} Nbd7 {[%emt 0:00:39]} 7. Bf4 {[%emt 0:03:27]} c5 {[%emt 0:00:51]} 8. d5 {[%emt 0:03:01]} a6 {[%emt 0:17:02]} 9. a4 {[%emt 0:03:05]} Qa5 {[%emt 0:03:30]} 10. Re1 {[%emt 0:05:35]} Qb4 {[%emt 0:14:49]} 11. Qd3 {[%emt 0:07:14]} Ng4 {[%emt 0:12:42]} 12. Rab1 {[%emt 0:33:12]} Nb6 {[%emt 0:10:15]} 13. h3 {[%emt 0:11:34]} Ne5 {[%emt 0:04:09]} 14. Bxe5 {[%emt 0:04:38]} dxe5 {[%emt 0:01:23]} 15. b3 {[%emt 0:05:52]} f5 {[%emt 0:01:42]} 16. Bf1 {[%emt 0:04:07]} f4 {[%emt 0:07:50]} 17. Na2 {[%emt 0:05:50]} Qa5 {[%emt 0:02:21]} 18. c4 {[%emt 0:02:33]} Rd8 {[%emt 0:05:03]} 19. Qc2 {[%emt 0:00:57]} h6 {[%emt 0:02:42]} 20. Nc1 {[%emt 0:02:32]} g5 {[%emt 0:00:34]} 21. Nd3 {[%emt 0:00:22]} Nd7 {[%emt 0:14:22]} 22. Qd1 {[%emt 0:01:34]} Rb8 {[%emt 0:00:30]} 23. Nh2 {[%emt 0:01:53]} Nf6 {[%emt 0:00:00]} 24. Rc1 {[%emt 0:01:20]} Bd7 {[%emt 0:00:00]} 25. Nxe5 {[%emt 0:00:58]} Be8 {[%emt 0:00:00]} 26. Neg4 {[%emt 0:00:58]} e6 {[%emt 0:00:00]} 27. Nxf6+ {[%emt 0:00:20]} Bxf6 {[%emt 0:00:00]} 28. Qg4 {[%emt 0:00:27]} e5 {[%emt 0:00:00]} 29. Qe6+ {[%emt 0:00:28]} Kg7 {[%emt 0:00:00]} 30. Ng4 {[%emt 0:00:16]} Rd6 {[%emt 0:00:00]} 31. Qxd6 {[%emt 0:00:38]} Qd8 {[%emt 0:00:11]} 32. Qxd8 {[%emt 0:01:31]} Bxd8 {[%emt 0:00:10]} 33. Nxe5 {[%emt 0:00:09]} Ba5 {[%emt 0:00:23]} 34. Red1 {[%emt 0:00:22]} h5 {[%emt 0:00:19]} 35. d6 {[%emt 0:00:33]} Rd8 {[%emt 0:00:11]} 36. d7 {[%emt 0:00:20]} Bf7 {[%emt 0:00:25]} 37. Nxf7 {[%emt 0:00:08]} Kxf7 {[%emt 0:00:07]} 38. Rd5 {[%emt 0:00:07]} Ke6 {[%emt 0:00:50]} 39. Rcd1 {[%emt 0:00:18]} Kf6 {[%emt 0:00:49]} 40. Rxc5 {[%emt 0:00:15]} Bb6 {[%emt 0:00:10]} 41. Rc8 {[%emt 0:00:08]} g4 {[%emt 0:00:30]} 42. c5 {[%emt 0:00:23]} Ba5 {[%emt 0:00:14]} 43. b4 {[%emt 0:00:14]} 1-0